bitfinex-derivatives/quotes_SOLF0:USTF0_20240816
["timestamp","ask_amount","ask_price","bid_price","bid_amount"]
[1723804160841,3.53615637,143.33,143.31,0.04925401]
[1723804162548,0.04855637,143.33,143.31,0.04925401]
[1723804162744,0.04855637,143.33,143.31,3.53725401]
[1723804164541,0.04855637,143.33,143.32,3.4878]
[1723804165150,3.53615637,143.33,143.31,3.53725401]
[1723804166441,3.53615637,143.33,143.31,0.04925401]
[1723804169547,0.04855637,143.33,143.31,3.53735401]
[1723804170843,0.04855637,143.33,143.32,3.4878]
[1723804172645,0.04855637,143.33,143.31,3.53725401]
[1723804172846,3.53625637,143.33,143.31,0.04925401]
[1723804173940,3.53625637,143.33,143.31,3.53735401]
[1723804175948,0.04855637,143.33,143.32,3.4878]
[1723804176247,0.04855637,143.33,143.32,14.2078]
[1723804178151,0.04855637,143.33,143.31,3.53715401]
[1723804179445,0.04855637,143.33,143.32,3.4878]
[1723804180449,0.04855637,143.33,143.31,0.04925401]
[1723804180450,0.04855637,143.33,143.31,3.53715401]
[1723804183454,3.53615637,143.33,143.31,3.53715401]
[1723804184448,3.53615637,143.33,143.31,0.04925401]
[1723804184449,3.4878,143.32,143.31,0.04925401]
[1723804184650,0.04855637,143.33,143.31,0.04925401]
[1723804185157,3.53625637,143.33,143.31,0.04925401]
[1723804186549,3.4878,143.32,143.31,0.04925401]
[1723804187050,3.53625637,143.33,143.31,0.04925401]
[1723804187847,0.04855637,143.33,143.31,3.53715401]
[1723804189150,0.04855637,143.33,143.31,0.04925401]
[1723804189554,3.53635637,143.33,143.31,0.04925401]
[1723804189857,0.04855637,143.33,143.31,0.04925401]
[1723804190850,3.4878,143.32,143.31,0.04925401]
[1723804194153,0.04855637,143.33,143.31,0.04925401]
[1723804194154,0.04855637,143.33,143.31,10.76925401]
[1723804194858,0.04855637,143.33,143.31,14.25715401]
[1723804195158,0.04855637,143.33,143.31,10.76925401]
[1723804196554,0.04855637,143.33,143.32,3.4878]
[1723804199363,0.04855637,143.33,143.31,22.14727009]
[1723804199954,0.04855637,143.33,143.31,18.69715401]
[1723804202457,3.53615637,143.33,143.31,15.20925401]
[1723804202668,0.04855637,143.33,143.31,10.76925401]
[1723804203566,0.04855637,143.33,143.32,3.4878]
[1723804211179,5.9996,143.38,143.32,4.44]
[1723804211378,5.9996,143.38,143.35,10.72]
[1723804211575,3.4864,143.38,143.35,10.72]
[1723804211764,1.2388,143.4,143.37,10.72]
[1723804212269,4.77613509,143.4,143.37,14.25944615]
[1723804214570,1.29013509,143.4,143.38,3.4862]
[1723804214765,0.05133509,143.4,143.38,10.72]
[1723804215371,0.05133509,143.4,143.39,3.4861]
[1723804216269,0.05133509,143.4,143.38,10.72]
[1723804216471,0.05133509,143.4,143.38,14.2063]
[1723804217272,0.05133509,143.4,143.39,3.4861]
[1723804224382,0.05133509,143.4,143.39,7.02304937]
[1723804225585,3.4847,143.45,143.41,3.4855]
[1723804225781,3.8351,143.47,143.36,4.44]
[1723804225980,3.8351,143.47,143.42,10.72]
[1723804226282,3.4849,143.45,143.42,10.72]
[1723804226480,3.8351,143.47,143.41,10.72]
[1723804226481,14.5551,143.47,143.41,10.72]
[1723804226790,0.0458434,143.45,143.43,0.04848131]
[1723804227084,3.4849,143.44,143.43,0.04848131]
[1723804230774,0.0458434,143.45,143.21,62.34076377]
[1723804230994,3.8351,143.47,143.38,10.72]
[1723804230995,10.72,143.44,143.38,10.72]
[1723804231284,10.72,143.44,143.34,4.44]
[1723804231285,10.72,143.43,143.34,4.44]
[1723804231488,10.72,143.43,143.36,10.72]
[1723804231682,2.6133,143.42,143.36,10.72]
[1723804231983,0.04991387,143.41,143.38,0.04892065]
[1723804232380,3.4861,143.4,143.38,0.04892065]
[1723804232987,0.04991387,143.41,143.38,0.04892065]
[1723804233187,3.4859,143.4,143.38,0.04892065]
[1723804233886,3.4861,143.39,143.38,0.04892065]
[1723804240291,3.4872,143.35,143.32,3.4877]
[1723804240483,10.72,143.37,143.3,10.72]
[1723804240684,3.4878,143.33,143.3,14.2082]
[1723804241399,0.04465921,143.33,143.3,10.76591458]
[1723804241899,3.53235921,143.33,143.3,14.25411458]
[1723804242396,0.04465921,143.33,143.32,3.4878]
[1723804245096,0.04465921,143.33,143.32,14.2078]
[1723804246799,0.04465921,143.33,143.32,13.4078]
[1723804246999,0.04465921,143.33,143.32,10.72]
[1723804247301,0.04465921,143.33,143.31,10.72]
[1723804247501,3.4878,143.32,143.31,10.72]
[1723804249206,3.53235921,143.33,143.31,10.72]
[1723804251605,0.04465921,143.33,143.32,10.72]
[1723804254203,0.04465921,143.33,143.3,0.04591458]
[1723804254404,1.28165921,143.33,143.3,0.04591458]
[1723804254911,3.488,143.32,143.3,0.04591458]
[1723804257107,3.4881,143.31,143.3,0.04591458]
[1723804257310,12.00165921,143.33,143.26,10.72]
[1723804257613,3.489,143.28,143.26,10.72]
[1723804257811,3.55127205,143.32,143.26,10.72]
[1723804258013,4.44,143.3,143.26,10.72]
[1723804258308,0.05035711,143.29,143.27,0.04999889]
[1723804258710,3.4888,143.28,143.27,0.04999889]
[1723804262214,0.05035711,143.29,143.27,0.04999889]
[1723804262600,0.05035711,143.29,143.28,10.72]
[1723804263509,0.05035711,143.29,143.28,14.2088]
[1723804264115,0.05035711,143.29,143.28,10.72]
[1723804265312,0.05035711,143.29,143.27,10.76999889]
[1723804265816,3.53905711,143.29,143.27,10.76999889]
[1723804266208,3.53905711,143.29,143.27,0.04999889]
[1723804266614,3.53905711,143.29,143.27,3.53899889]
[1723804267518,0.05035711,143.29,143.27,14.25899889]
[1723804268014,0.05035711,143.29,143.28,3.4888]
[1723804269521,0.05035711,143.29,143.27,14.25889889]
[1723804269910,0.05035711,143.29,143.27,10.76999889]
[1723804270220,3.53905711,143.29,143.27,10.76999889]
[1723804271218,0.05035711,143.29,143.27,14.25899889]
[1723804272020,0.05035711,143.29,143.28,3.4888]
[1723804272421,1.237,143.33,143.31,14.208]
[1723804272717,4.42,143.38,143.31,10.72]
[1723804272925,3.4871,143.35,143.33,10.72]
[1723804273416,3.53433336,143.35,143.33,10.77031914]
[1723804273720,3.53433336,143.35,143.33,0.05031914]
[1723804273721,3.4873,143.34,143.33,0.05031914]
[1723804277518,0.04723336,143.35,143.33,0.05031914]
[1723804278126,3.4873,143.34,143.33,0.05031914]
[1723804283630,0.04723336,143.35,143.33,3.53781914]
[1723804283831,0.04723336,143.35,143.33,0.05031914]
[1723804284228,3.53433336,143.35,143.33,0.05031914]
[1723804285832,0.04723336,143.35,143.33,3.53781914]
[1723804286025,0.04723336,143.35,143.34,10.72]
[1723804286636,0.04723336,143.35,143.34,14.2073]
[1723804293051,2.5822,143.44,143.34,53.6]
[1723804293336,3.4852,143.43,143.4,10.72]
[1723804293532,2.5822,143.44,143.4,14.2059]
[1723804293834,2.5822,143.44,143.4,10.72]
[1723804294037,0.0533529,143.43,143.41,0.04962915]
[1723804295136,3.4856,143.42,143.41,0.04962915]
[1723804295537,0.0533529,143.43,143.41,0.04962915]
[1723804296435,3.4854,143.42,143.41,0.04962915]
[1723804296837,14.2054,143.42,143.41,0.04962915]
[1723804297038,3.4864,143.39,143.36,10.72]
[1723804297334,1.3053,143.41,143.36,10.72]
[1723804298139,0.04922924,143.4,143.37,0.05211667]
[1723804298731,3.4863,143.39,143.37,0.05211667]
[1723804302946,3.4863,143.39,143.37,10.77211667]
[1723804303952,3.4864,143.38,143.37,10.77211667]
[1723804304255,3.4864,143.38,143.37,0.05211667]
[1723804311756,3.4863,143.39,143.37,10.77211667]
[1723804313559,0.04922924,143.4,143.39,3.4861]
[1723804313757,0.04922924,143.4,143.39,14.2061]
[1723804318263,0.04922924,143.4,143.39,10.72]
[1723804323262,3.53512924,143.4,143.39,10.72]
[1723804323762,3.4862,143.39,143.37,4.47211667]
[1723804323970,0.04922924,143.4,143.37,10.77211667]
[1723804324363,3.4862,143.39,143.37,10.77211667]
[1723804325261,3.4864,143.38,143.37,0.05211667]
[1723804325466,4.7534,143.38,143.37,0.05211667]
[1723804327967,4.7534,143.38,143.37,10.77211667]
[1723804328460,3.4864,143.38,143.37,10.77211667]
[1723804331259,3.4864,143.38,143.37,0.05211667]
[1723804337568,3.4864,143.38,143.37,10.77211667]
[1723804343874,3.4862,143.39,143.37,10.77211667]
[1723804344576,3.53522924,143.4,143.37,14.25861667]
[1723804345572,3.53522924,143.4,143.38,3.4863]
[1723804345973,0.04922924,143.4,143.38,3.4863]
[1723804346173,0.04922924,143.4,143.38,14.2063]
[1723804350174,0.04922924,143.4,143.39,3.4861]
[1723804350574,76.4474265,143.47,143.38,14.13286266]
[1723804350767,3.485,143.44,143.42,10.72]
[1723804351374,3.485,143.44,143.42,14.2053]
[1723804351581,0.05019056,143.44,143.42,10.76966823]
[1723804351879,0.05019056,143.44,143.43,10.72]
[1723804352581,0.05019056,143.44,143.42,0.04966823]
[1723804352778,0.05019056,143.44,143.31,0.1443]
[1723804353075,1.3207,143.45,143.38,10.72]
[1723804353781,3.4856,143.42,143.39,3.4861]
[1723804353974,0.04543746,143.43,143.4,0.04796264]
[1723804354375,3.4856,143.41,143.4,0.04796264]
[1723804361790,3.4855,143.42,143.4,0.04796264]
[1723804361981,0.04543746,143.43,143.4,0.04796264]
[1723804362782,3.4856,143.41,143.4,0.04796264]
[1723804364785,3.487,143.36,143.31,1.3473]
[1723804364981,3.487,143.36,143.34,10.72]
[1723804365793,3.4867,143.37,143.34,10.72]
[1723804365990,0.05057761,143.36,143.35,10.72]
[1723804367495,0.05057761,143.36,143.35,14.2071]
[1723804379804,5.7759,143.43,143.38,3.4863]
[1723804380507,4.42,143.43,143.39,3.486]
[1723804380697,5.7629,143.45,143.39,10.72]
[1723804381208,3.4859,143.4,143.39,10.72]
[1723804384600,3.4861,143.39,143.38,10.76447074]
[1723804385015,3.4861,143.39,143.38,0.04447074]
[1723804387113,0.04708328,143.42,143.22,229.53278492]
[1723804387114,3.488,143.32,143.22,229.53278492]
[1723804387317,13.2693,143.38,143.31,10.72]
[1723804388020,3.4875,143.34,143.31,10.72]
[1723804388318,0.05054425,143.34,143.31,10.76443871]
[1723804388517,3.4876,143.33,143.31,10.76443871]
[1723804391314,3.53794425,143.34,143.31,14.25243871]
[1723804392625,3.53794425,143.34,143.31,3.53243871]
[1723804393323,3.53794425,143.34,143.32,3.4878]
[1723804393916,0.05054425,143.34,143.32,3.4878]
[1723804399328,3.53784425,143.34,143.32,3.4878]
[1723804401230,3.53784425,143.34,143.31,3.53243871]
[1723804402323,3.53784425,143.34,143.32,3.4878]
[1723804402725,3.53784425,143.34,143.31,0.04443871]
[1723804403035,0.05054425,143.34,143.31,3.53243871]
[1723804403330,0.05054425,143.34,143.31,0.04443871]
[1723804403530,0.05054425,143.34,143.33,3.4876]
[1723804421838,0.05054425,143.34,143.32,7.9077]
[1723804422038,0.05054425,143.34,143.32,3.4877]
[1723804422341,0.05054425,143.34,143.31,0.04443871]
[1723804423046,3.4877,143.33,143.31,0.04443871]
[1723804424343,3.4877,143.33,143.31,3.53243871]
[1723804424542,3.4877,143.33,143.31,0.04443871]
[1723804425547,0.05054425,143.34,143.27,3.4888]
[1723804425548,3.4879,143.32,143.27,3.4888]
[1723804425746,3.4879,143.32,143.26,4.4]
[1723804426149,3.4879,143.32,143.26,7.97385414]
[1723804426444,3.4879,143.32,143.29,3.4883]
[1723804426646,3.53780816,143.32,143.29,3.5371482]
[1723804428645,3.53780816,143.32,143.3,3.4883]
[1723804429850,3.53780816,143.32,143.29,3.5372482]
[1723804432151,0.04990816,143.32,143.29,0.0488482]
[1723804433246,0.04990816,143.32,143.31,3.4881]
[1723804433845,0.04990816,143.32,143.29,0.0488482]
[1723804435152,3.53790816,143.32,143.29,3.5372482]
[1723804437059,3.4881,143.31,143.29,0.0488482]
[1723804437260,0.04990816,143.32,143.29,0.0488482]
[1723804437659,3.4882,143.31,143.29,0.0488482]
[1723804439158,4.8449,143.31,143.29,0.0488482]
[1723804444259,3.4883,143.3,143.29,0.0488482]
[1723804444659,4.8449,143.31,143.29,0.0488482]
[1723804445163,1.3567,143.31,143.29,0.0488482]
[1723804445356,4.8449,143.31,143.29,0.0488482]
[1723804447060,1.3567,143.31,143.16,34.8833]
[1723804447258,1.3567,143.31,143.19,4.4]
[1723804447259,4.4,143.3,143.19,4.4]
[1723804447453,1.3353,143.29,143.19,4.4]
[1723804447664,3.4892,143.27,143.23,3.4898]
[1723804447852,1.3353,143.29,143.2,3.43792468]
[1723804448055,3.4895,143.26,143.23,0.04776313]
[1723804448259,0.05128629,143.26,143.23,0.04776313]
[1723804449166,3.4898,143.24,143.23,0.04776313]
[1723804454966,1.221,143.25,143.23,0.04776313]
[1723804455164,1.221,143.25,143.24,3.4898]
[1723804459970,3.54058629,143.26,143.24,3.4898]
[1723804462364,3.54058629,143.26,143.23,3.53766313]
[1723804463571,3.54058629,143.26,143.24,3.4897]
[1723804465573,0.05128629,143.26,143.25,3.4895]
[1723804469364,0.05128629,143.26,143.24,3.4897]
[1723804471675,3.54058629,143.26,143.24,3.4897]
[1723804472080,0.05128629,143.26,143.24,3.4897]
[1723804472564,0.05128629,143.26,143.24,3.4895]
[1723804472767,0.05128629,143.26,143.23,0.04776313]
[1723804473475,0.05128629,143.26,143.24,3.4896]
[1723804475473,0.05128629,143.26,143.23,0.04776313]
[1723804475670,3.54068629,143.26,143.23,0.04776313]
[1723804475875,0.05128629,143.26,143.23,0.04776313]
[1723804476175,0.05128629,143.26,143.24,3.4896]
[1723804479380,3.54058629,143.26,143.24,3.4896]
[1723804480080,0.05128629,143.26,143.24,3.4896]
[1723804484884,0.05128629,143.26,143.23,0.04776313]
[1723804485387,0.05128629,143.26,143.25,3.4895]
[1723804498087,3.4882,143.31,143.28,3.4887]
[1723804498392,4.4,143.33,143.24,5.7465]
[1723804498693,3.4881,143.31,143.28,3.4886]
[1723804499290,3.53576236,143.31,143.28,0.04543941]
[1723804500695,3.53576236,143.31,143.29,3.4885]
[1723804501793,0.04756236,143.31,143.3,3.4883]
[1723804525007,4.7783,143.37,143.34,3.4872]
[1723804525208,2.5898,143.39,143.32,4.4]
[1723804525403,3.4865,143.38,143.32,4.4]
[1723804525702,2.5898,143.39,143.32,4.4]
[1723804525903,1.2393,143.39,143.32,4.4]
[1723804526105,1.2393,143.39,143.37,3.4866]
[1723804526514,0.04740951,143.39,143.34,0.04933419]
[1723804527614,0.04740951,143.39,143.35,4.4]
[1723804527914,0.04740951,143.39,143.36,3.4867]
[1723804528824,0.04740951,143.39,143.37,3.4865]
[1723804530015,0.04740951,143.39,143.38,3.4864]
[1723804543913,0.04740951,143.39,143.37,3.53276533]
[1723804544521,3.53350951,143.39,143.37,0.04626533]
[1723804545320,3.4864,143.38,143.37,0.04626533]
[1723804545726,4.8242,143.38,143.37,0.04626533]
[1723804546427,0.04740951,143.39,143.37,0.04626533]
[1723804547128,0.04740951,143.39,143.38,3.4864]
[1723804553028,0.04740951,143.39,143.37,3.53276533]
[1723804553228,0.04740951,143.39,143.37,0.04626533]
[1723804553429,0.04740951,143.39,143.37,3.53276533]
[1723804555934,0.04740951,143.39,143.38,3.4864]
[1723804560537,0.04740951,143.39,143.38,1.452]
[1723804560738,0.04740951,143.39,143.37,0.04626533]
[1723804561239,3.53370951,143.39,143.37,0.04626533]
[1723804563739,3.4864,143.38,143.37,0.04626533]
[1723804563946,1.2365,143.38,143.29,4.38]
[1723804564250,1.2365,143.38,143.31,3.4879]
[1723804564850,0.0531801,143.36,143.33,0.04475141]
[1723804565051,3.4872,143.35,143.33,0.04475141]
[1723804566042,0.0531801,143.36,143.33,0.04475141]
[1723804566043,3.5400801,143.36,143.33,3.53225141]
[1723804566243,0.0531801,143.36,143.33,0.04475141]
[1723804568045,0.0531801,143.36,143.34,3.4873]
[1723804570051,0.0531801,143.36,143.35,3.4871]
[1723804571147,0.0531801,143.36,143.34,3.4872]
[1723804571652,0.0531801,143.36,143.33,0.04475141]
[1723804572249,3.5400801,143.36,143.33,3.53215141]
[1723804573156,3.5400801,143.36,143.34,3.4873]
[1723804576661,0.0531801,143.36,143.34,3.4873]
[1723804577053,0.0531801,143.36,143.35,3.4871]
[1723804578455,0.0531801,143.36,143.34,3.4872]
[1723804585672,0.0531801,143.36,143.35,3.4871]
[1723804587361,230.0,143.48,143.33,0.04475141]
[1723804587564,4.38,143.45,143.34,4.38]
[1723804587866,4.38,143.46,143.35,4.38]
[1723804588368,0.04440868,143.42,143.4,3.4856]
[1723804589070,0.04440868,143.42,143.41,3.4856]
[1723804589471,3.4847,143.45,143.39,3.49823673]
[1723804589663,3.4847,143.45,143.39,7.87823673]
[1723804590271,1.2569,143.47,143.39,7.87823673]
[1723804590573,0.04427667,143.44,143.39,7.87823673]
[1723804591271,0.04427667,143.44,143.39,4.43047829]
[1723804592176,3.52937667,143.44,143.41,3.4856]
[1723804592972,0.04427667,143.44,143.4,3.4857]
[1723804593167,3.5787858,143.44,143.39,0.05047829]
[1723804593369,2.5385,143.43,143.39,0.05047829]
[1723804593582,3.4859,143.4,143.39,0.05047829]
[1723804593876,2.5385,143.43,143.35,3.4869]
[1723804594062,1.3364,143.39,143.35,3.4869]
[1723804594868,3.53222103,143.38,143.36,0.04491127]
[1723804595576,3.4866,143.37,143.36,0.04491127]
[1723804596277,3.53222103,143.38,143.36,0.04491127]
[1723804596771,0.04572103,143.38,143.36,0.04491127]
[1723804596980,3.4866,143.37,143.36,0.04491127]
[1723804616790,3.53222103,143.38,143.36,0.04491127]
[1723804617987,0.04572103,143.38,143.36,3.53161127]
[1723804618190,0.04572103,143.38,143.36,0.04491127]
[1723804619891,3.4866,143.37,143.36,0.04491127]
[1723804627494,1.3037,143.37,143.28,1.297]
[1723804627699,4.38,143.36,143.28,1.297]
[1723804628001,3.4877,143.33,143.3,3.4882]
[1723804628500,3.53319812,143.33,143.3,3.5403578]
[1723804631604,3.4878,143.32,143.3,0.0521578]
[1723804632402,0.04549812,143.33,143.3,0.0521578]
[1723804633598,3.4881,143.31,143.3,0.0521578]
[1723804635000,3.4887,143.29,143.26,3.4892]
[1723804636204,3.54033096,143.29,143.26,3.54142458]
[1723804638708,0.05163096,143.29,143.26,0.05222458]
[1723804640211,0.05163096,143.29,143.27,3.489]
[1723804640510,0.05163096,143.29,143.26,0.05222458]
[1723804640707,3.54033096,143.29,143.26,3.54142458]
[1723804641415,3.54033096,143.29,143.27,3.489]
[1723804643013,0.05163096,143.29,143.27,3.489]
[1723804646509,0.05163096,143.29,143.26,0.05222458]
[1723804647109,0.05163096,143.29,143.28,3.4888]
[1723804652014,0.05163096,143.29,143.27,3.4888]
[1723804652209,0.05163096,143.29,143.26,0.05222458]
[1723804652616,0.05163096,143.29,143.28,3.4888]
[1723804656025,1.26,143.35,143.24,7.3693]
[1723804656227,1.26,143.35,143.27,4.38]
[1723804656433,3.4875,143.34,143.31,3.4879]
[1723804657024,3.53337797,143.34,143.31,3.5377885]
[1723804667645,3.4876,143.33,143.31,3.5377885]
[1723804669041,3.53327797,143.34,143.31,3.5377885]
[1723804672446,0.04587797,143.34,143.31,0.0498885]
[1723804673849,3.53327797,143.34,143.32,3.4877]
[1723804674151,0.04587797,143.34,143.32,3.4877]
[1723804674744,0.04587797,143.34,143.33,3.4876]
[1723804680250,3.486,143.4,143.37,3.4864]
[1723804680458,3.486,143.4,143.32,1.3286]
[1723804680648,4.36,143.42,143.32,1.3286]
[1723804680958,3.485,143.44,143.32,1.3286]
[1723804681251,1.3501,143.47,143.32,1.3286]
[1723804681559,1.3501,143.47,143.42,3.4852]
[1723804681856,1.3501,143.47,143.43,4.36]
[1723804682055,0.05268109,143.46,143.44,4.36]
[1723804682653,3.4847,143.45,143.44,4.36]
[1723804683761,3.4847,143.45,143.43,0.04422806]
[1723804684062,3.4847,143.45,143.43,4.40422806]
[1723804686253,3.4849,143.44,143.43,0.04422806]
[1723804696470,3.4848,143.45,143.43,0.04422806]
[1723804698667,3.4848,143.45,143.43,3.52932806]
[1723804698868,3.4848,143.45,143.43,0.04422806]
[1723804699774,0.05268109,143.46,143.43,0.04422806]
[1723804700870,3.4849,143.44,143.43,0.04422806]
[1723804702468,3.4849,143.44,143.37,4.36]
[1723804702469,3.55238888,143.44,143.37,4.36]
[1723804702673,4.36,143.46,143.32,1.2388]
[1723804702875,4.36,143.46,143.37,3.4866]
[1723804702876,3.486,143.4,143.37,3.4866]
[1723804703173,4.72157836,143.43,143.34,4.36]
[1723804703370,1.3173,143.42,143.34,4.36]
[1723804703579,0.05356272,143.4,143.37,0.05028166]
[1723804704775,3.4861,143.39,143.37,3.53688166]
[1723804705682,3.53956272,143.4,143.37,3.53688166]
[1723804706781,3.53956272,143.4,143.37,0.05028166]
[1723804707084,0.05356272,143.4,143.38,3.4864]
[1723804708586,0.05356272,143.4,143.39,3.4861]
[1723804743420,0.05356272,143.4,143.38,7.8463]
[1723804743713,0.05356272,143.4,143.37,0.05028166]
[1723804744117,3.53956272,143.4,143.37,0.05028166]
[1723804745520,3.53956272,143.4,143.34,7.8472]
[1723804745521,0.05356272,143.4,143.34,7.8472]
[1723804745720,0.05356272,143.4,143.34,3.4872]
[1723804745721,4.41356272,143.4,143.34,3.4872]
[1723804746118,3.4864,143.38,143.34,3.4872]
[1723804746316,1.3388,143.37,143.34,3.4872]
[1723804746518,3.4871,143.35,143.34,0.04816134]
[1723804747320,1.3916365,143.37,143.31,3.488]
[1723804747523,5.6443,143.36,143.31,3.488]
[1723804747718,1.2843,143.36,143.31,3.488]
[1723804747923,3.4873,143.35,143.31,3.488]
[1723804748218,1.2843,143.36,143.32,0.05009935]
[1723804748420,0.04610938,143.35,143.32,0.05009935]
[1723804748724,3.53340938,143.35,143.32,0.05009935]
[1723804749622,3.4875,143.34,143.32,0.05009935]
[1723804751921,3.4876,143.33,143.32,0.05009935]
[1723804752423,3.488,143.32,143.28,3.4887]
[1723804752623,4.7798,143.32,143.28,3.4887]
[1723804753621,0.04537106,143.31,143.29,0.05280531]
[1723804753820,0.04537106,143.31,143.29,3.54130531]
[1723804754223,0.04537106,143.31,143.29,0.05280531]
[1723804755420,0.04537106,143.31,143.3,3.4883]
[1723804758128,1.244,143.37,143.35,3.487]
[1723804758428,1.244,143.37,143.29,1.269]
[1723804758628,1.244,143.37,143.34,3.4872]
[1723804759126,1.28812711,143.37,143.34,3.53263599]
[1723804760620,1.28812711,143.37,143.35,3.4871]
[1723804769638,1.28812711,143.37,143.36,3.4869]
[1723804770041,0.04412711,143.37,143.36,3.4869]
[1723804777344,0.04412711,143.37,143.35,3.487]
[1723804779943,0.04412711,143.37,143.36,3.4869]
[1723804781456,0.04412711,143.37,143.35,3.487]
[1723804783946,3.53092711,143.37,143.34,0.04543599]
[1723804784154,0.04412711,143.37,143.34,0.04543599]
[1723804784749,3.53092711,143.37,143.34,0.04543599]
[1723804786953,0.04412711,143.37,143.34,0.04543599]
[1723804787654,0.04412711,143.37,143.34,3.53263599]
[1723804789848,0.04412711,143.37,143.35,3.4871]
[1723804791862,3.53082711,143.37,143.34,3.53273599]
[1723804793746,0.04412711,143.37,143.34,3.53273599]
[1723804801163,0.04412711,143.37,143.35,3.487]
[1723804803071,0.04412711,143.37,143.34,3.53263599]
[1723804803255,0.04412711,143.37,143.34,0.04543599]
[1723804803454,0.04412711,143.37,143.35,3.487]
[1723804803959,0.04412711,143.37,143.34,3.53263599]
[1723804804665,3.53072711,143.37,143.34,3.53263599]
[1723804804868,0.04412711,143.37,143.34,0.04543599]
[1723804805267,3.4869,143.36,143.34,0.04543599]
[1723804809470,0.04412711,143.37,143.34,3.53263599]
[1723804809671,0.04412711,143.37,143.34,0.04543599]
[1723804810470,3.53092711,143.37,143.34,0.04543599]
[1723804811368,0.04412711,143.37,143.34,0.04543599]
[1723804811575,0.04412711,143.37,143.34,3.53253599]
[1723804817379,0.04412711,143.37,143.35,3.4871]
[1723804818276,0.04412711,143.37,143.36,3.4869]
[1723804819582,0.04412711,143.37,143.35,3.487]
[1723804820481,0.04412711,143.37,143.34,3.53273599]
[1723804821269,0.04412711,143.37,143.35,3.487]
[1723804825981,0.04412711,143.37,143.35,3.4871]
[1723804828379,0.04412711,143.37,143.36,3.4869]
[1723804829182,0.04412711,143.37,143.36,14.1969]
[1723804829583,0.04412711,143.37,143.36,17.69508293]
[1723804831884,3.4852,143.43,143.39,3.4859]
[1723804832084,3.4852,143.43,143.4,10.71]
[1723804832694,3.485,143.44,143.4,14.1957]
[1723804833081,0.04671884,143.43,143.41,0.04672428]
[1723804833589,0.04671884,143.43,143.41,3.53232428]
[1723804833786,0.04671884,143.43,143.41,10.75672428]
[1723804834083,0.04671884,143.43,143.42,3.4854]
[1723804837287,3.484,143.48,143.41,16.38892428]
[1723804837482,1.3133,143.5,143.46,10.71]
[1723804837883,3.4839,143.49,143.46,10.71]
[1723804838098,1.3133,143.5,143.46,10.71]
[1723804838490,3.52924382,143.49,143.47,0.05346581]
[1723804840289,3.4839,143.48,143.47,0.05346581]
[1723804847710,3.52914382,143.49,143.47,0.05346581]
[1723804851714,2.72914382,143.49,143.47,0.05346581]
[1723804852615,2.72914382,143.49,143.47,3.53766581]
[1723804852817,0.04850286,143.49,143.47,10.76346581]
[1723804853314,0.04850286,143.49,143.47,14.24756581]
[1723804853911,0.04850286,143.49,143.48,14.1939]
[1723804854709,3.4827,143.54,143.5,3.4833]
[1723804855018,3.4827,143.54,143.52,10.71]
[1723804855909,3.53175947,143.54,143.52,10.75478905]
[1723804856415,0.04905947,143.54,143.52,14.23778905]
[1723804859414,3.53155947,143.54,143.52,14.23778905]
[1723804860621,3.53155947,143.54,143.52,10.75478905]
[1723804860822,3.4827,143.53,143.52,0.04478905]
[1723804862421,3.53165947,143.54,143.52,0.04478905]
[1723804864126,3.4827,143.53,143.52,0.04478905]
[1723804867327,0.04905947,143.54,143.52,0.04478905]
[1723804867328,3.53165947,143.54,143.52,0.04478905]
[1723804868322,3.53165947,143.54,143.52,10.75478905]
[1723804870428,0.04905947,143.54,143.52,14.23758905]
[1723804870630,0.04905947,143.54,143.52,10.75478905]
[1723804871022,0.04905947,143.54,143.52,0.04478905]
[1723804871826,3.4827,143.53,143.52,0.04478905]
[1723804874223,3.4827,143.53,143.52,10.75478905]
[1723804874929,0.04905947,143.54,143.52,10.75478905]
[1723804875127,0.04905947,143.54,143.53,10.71]
[1723804876729,0.04905947,143.54,143.53,14.1927]
[1723804878734,3.53155947,143.54,143.52,14.23768905]
[1723804879032,0.04905947,143.54,143.52,14.23768905]
[1723804884238,3.4827,143.53,143.52,0.04478905]
[1723804892840,3.53165947,143.54,143.52,0.04478905]
[1723804896252,0.04905947,143.54,143.52,10.75478905]
[1723804896946,0.04905947,143.54,143.52,14.23758905]